fUSD/lending_fUSD_20240823
["ID","MTS","AMOUNT","RATE_DAILY","PERIOD"]
[335623598,1724391090040,-500.0,0.00010999,2]
[335623599,1724391090050,-500.0,0.00010999,2]
[335623600,1724391090062,-500.0,0.00010999,2]
[335623601,1724391090071,-500.0,0.00010999,2]
[335623602,1724391090080,-500.0,0.00010999,2]
[335623603,1724391090089,-500.0,0.00010999,2]
[335623604,1724391090097,-500.0,0.00010999,2]
[335623605,1724391090106,-500.0,0.00010999,2]
[335623606,1724391090115,-500.0,0.00010999,2]
[335623607,1724391090124,-500.0,0.00010999,2]
[335623608,1724391090133,-568.78417839,0.00010999,2]
[335623609,1724391090142,-500.0,0.00010999,2]
[335623610,1724391090150,-500.0,0.00010999,2]
[335623611,1724391090159,-3206.17,0.00010999,2]
[335623612,1724391090167,-426.70793709,0.00010999,2]
[335623613,1724391090177,-226.41806514,0.00010999,2]
[335623614,1724391090186,-3206.17,0.00010999,2]
[335623615,1724391090195,-3206.17,0.00010999,2]
[335623616,1724391090204,-3206.17,0.00010999,2]
[335623617,1724391090212,-3206.17,0.00010999,2]
[335623618,1724391090221,-3206.17,0.00010999,2]
[335623619,1724391090231,-3206.17,0.00010999,2]
[335623620,1724391090240,-3206.17,0.00010999,2]
[335623621,1724391090249,-3206.17,0.00010999,2]
[335623622,1724391090258,-3206.17,0.00010999,2]
[335623623,1724391090267,-3206.17,0.00010999,2]
[335623624,1724391090276,-3206.35423173,0.00010999,2]
[335623625,1724391090285,-1271.725054,0.00010999,2]
[335623626,1724391090294,-1271.725054,0.00010999,2]
[335623627,1724391090303,-1271.725054,0.00010999,2]
[335623628,1724391090311,-500.0,0.00010999,2]
[335623629,1724391090320,-1271.725054,0.00010999,2]
[335623630,1724391090329,-500.0,0.00010999,2]
[335623631,1724391090338,-1271.725054,0.00010999,2]
[335623632,1724391090347,-500.0,0.00010999,2]
[335623633,1724391090356,-1271.725054,0.00010999,2]
[335623634,1724391090365,-500.0,0.00010999,2]
[335623635,1724391090374,-1271.725054,0.00010999,2]
[335623636,1724391090383,-759.76,0.00010999,2]
[335623637,1724391090392,-1271.725054,0.00010999,2]
[335623638,1724391090401,-500.0,0.00010999,2]
[335623639,1724391090410,-759.76,0.00010999,2]
[335623640,1724391090419,-1271.725054,0.00010999,2]
[335623641,1724391090428,-500.0,0.00010999,2]
[335623642,1724391090437,-759.76,0.00010999,2]
[335623643,1724391090446,-500.0,0.00010999,2]
[335623644,1724391090455,-759.76,0.00010999,2]
[335623645,1724391090465,-1271.725054,0.00010999,2]
[335623646,1724391090474,-500.0,0.00010999,2]
[335623647,1724391090484,-759.76,0.00010999,2]
[335623648,1724391090494,-1271.725054,0.00010999,2]
[335623649,1724391090503,-759.76,0.00010999,2]
[335623650,1724391090512,-500.0,0.00010999,2]
[335623651,1724391090521,-759.76,0.00010999,2]
[335623652,1724391090530,-500.0,0.00010999,2]
[335623653,1724391090540,-1271.725054,0.00010999,2]
[335623654,1724391090551,-759.76,0.00010999,2]
[335623655,1724391090560,-508.37653123,0.00010999,2]
[335623656,1724391090570,-4125.66,0.00010999,2]
[335623657,1724391090579,-759.76,0.00010999,2]
[335623658,1724391090589,-1271.725054,0.00010999,2]
[335623659,1724391090599,-759.76,0.00010999,2]
[335623660,1724391090609,-4125.66,0.00010999,2]
[335623661,1724391090619,-1271.725054,0.00010999,2]
[335623662,1724391090628,-4125.66,0.00010999,2]
[335623663,1724391090637,-759.76,0.00010999,2]
[335623664,1724391090646,-1271.725054,0.00010999,2]
[335623665,1724391090656,-759.76,0.00010999,2]
[335623666,1724391090666,-4125.66,0.00010999,2]
[335623667,1724391090675,-1271.725054,0.00010999,2]
[335623668,1724391090685,-759.76,0.00010999,2]
[335623669,1724391090694,-4125.66,0.00010999,2]
[335623670,1724391090704,-1271.725054,0.00010999,2]
[335623671,1724391090714,-759.76,0.00010999,2]
[335623672,1724391090724,-4125.66,0.00010999,2]
[335623673,1724391090739,-1271.725054,0.00010999,2]
[335623674,1724391090748,-759.76,0.00010999,2]
[335623675,1724391090759,-4125.66,0.00010999,2]
[335623676,1724391090769,-759.76,0.00010999,2]
[335623677,1724391090778,-4125.66,0.00010999,2]
[335623678,1724391090788,-1271.725054,0.00010999,2]
[335623679,1724391090797,-759.76,0.00010999,2]
[335623680,1724391090807,-4125.66,0.00010999,2]
[335623681,1724391090818,-1271.725052,0.00010999,2]
[335623682,1724391090827,-759.76,0.00010999,2]
[335623683,1724391090837,-4125.66,0.00010999,2]
[335623684,1724391090846,-500.0,0.00010999,2]
[335623685,1724391090855,-759.76,0.00010999,2]
[335623686,1724391090865,-4125.66,0.00010999,2]
[335623687,1724391090874,-500.0,0.00010999,2]
[335623688,1724391090884,-759.8272459,0.00010999,2]
[335623689,1724391090893,-357349.44660835,0.00011,2]
[335623690,1724391092460,-1572.51,0.00010997,2]
[335623691,1724391092470,-1572.51,0.00010997,2]
[335623692,1724391092480,-1572.51,0.00010998,2]
[335623693,1724391092490,-4125.81964262,0.00010999,2]
[335623694,1724391092499,-500.0,0.00010999,2]
[335623695,1724391092509,-500.0,0.00010999,2]
[335623696,1724391092518,-500.0,0.00010999,2]
[335623697,1724391092527,-500.0,0.00010999,2]
[335623698,1724391092536,-500.0,0.00010999,2]
[335623699,1724391092546,-500.0,0.00010999,2]
[335623700,1724391092555,-500.0,0.00010999,2]
[335623701,1724391092565,-500.0,0.00010999,2]
[335623702,1724391092575,-500.0,0.00010999,2]
[335623703,1724391092584,-500.0,0.00010999,2]
[335623704,1724391092593,-500.0,0.00010999,2]
[335623705,1724391092603,-1131117.76085268,0.00011,2]
[335623706,1724391092774,-1572.51,0.00010998,2]
[335623707,1724391092784,-500.0,0.00010998,2]
[335623708,1724391092794,-1572.51,0.00010998,2]
[335623709,1724391092803,-379.90214931,0.00010998,2]
[335623710,1724391092814,-1572.51,0.00010998,2]
[335623711,1724391092824,-1572.51,0.00010998,2]
[335623712,1724391092833,-1572.51,0.00010998,2]
[335623713,1724391092843,-1572.51,0.00010998,2]
[335623714,1724391092852,-1572.51,0.00010998,2]
[335623715,1724391092862,-500.0,0.00010998,2]
[335623716,1724391092871,-1572.51,0.00010998,2]
[335623717,1724391092881,-500.0,0.00010998,2]
[335623718,1724391092890,-1572.51,0.00010998,2]
[335623719,1724391092900,-500.0,0.00010999,2]
[335623720,1724391092910,-500.0,0.00010999,2]
[335623721,1724391092919,-500.0,0.00010999,2]
[335623722,1724391092928,-500.0,0.00010999,2]
[335623723,1724391092938,-510.95667376,0.00010999,2]
[335623724,1724391092947,-61588.55117697,0.00011,2]
[335623725,1724391093321,-500.0,0.00010998,2]
[335623726,1724391093330,-2499.99999997,0.00011,2]
[335623727,1724391093342,-6000.0,0.00011,2]
[335623728,1724391093353,-2993.42501745,0.00011,2]
[335623729,1724391093365,-268.54607938,0.00011,2]
[335623730,1724391093376,-3725.66050861,0.00011,2]
[335623731,1724391093387,-1337.15654107,0.00011,2]
[335623732,1724391093402,-3064.33064907,0.00011,2]
[335623737,1724391201189,1894.0,0.00027,120]
[335623738,1724391229234,197.58,8.321e-05,2]
[335623739,1724391603077,151.10645324,8.321e-05,2]
[335623741,1724391846051,187.7,8.355e-05,2]
[335623856,1724392135043,-152.0,0.00013737,30]
[335623857,1724392135068,-152.0,0.00013798,31]
[335623858,1724392135095,-152.0,0.0001386,32]
[335623859,1724392135124,-1000.0,0.00014,30]
[335623860,1724392154602,-152.0,0.00013675,29]
[335623861,1724392162338,-152.0,0.00013613,28]
[335623864,1724392173504,-152.0,0.0001275,14]
[335623865,1724392173530,-152.0,0.00012812,15]
[335623866,1724392173558,-152.0,0.00012873,16]
[335623867,1724392173585,-152.0,0.00012935,17]
[335623868,1724392173613,-152.0,0.00012997,18]
[335623869,1724392173640,-152.0,0.00013058,19]
[335623870,1724392173667,-152.0,0.0001312,20]
[335623871,1724392173694,-152.0,0.00013182,21]
[335623872,1724392173721,-152.0,0.00013243,22]
[335623873,1724392173748,-152.0,0.00013305,23]
[335623874,1724392173776,-152.0,0.00013367,24]
[335623875,1724392173804,-152.0,0.00013428,25]
[335623876,1724392173832,-152.0,0.0001349,26]
[335623877,1724392173860,-152.0,0.00013552,27]
[335623878,1724392185893,-152.0,0.00012627,12]
[335623879,1724392185919,-152.0,0.00012688,13]
[335623880,1724392185946,-1118.0,0.00013,13]
[335623885,1724392203741,-500.0,0.00012,7]
[335623886,1724392203768,-1500.0,0.00012,7]
[335623887,1724392203798,-152.0,0.00012318,7]
[335623888,1724392203826,-152.0,0.0001238,8]
[335623889,1724392203854,-152.0,0.00012441,9]
[335623890,1724392203888,-152.0,0.00012503,10]
[335623891,1724392203916,-152.0,0.00012565,11]
[335623900,1724392232036,-255.3790645,0.00010097,2]
[335623901,1724392232046,-500.0,0.00010164,2]
[335623902,1724392232055,-271.92686003,0.00010164,2]
[335623924,1724392234546,-500.0,0.0001197,5]
[335623925,1724392234575,-152.0,0.00012133,4]
[335623926,1724392234603,-152.0,0.00012195,5]
[335623927,1724392234630,-152.0,0.00012256,6]
[335623928,1724392234663,-267.58809391,0.0001386,5]
[335623929,1724392234691,-2006.96935774,0.0001399,4]
[335623933,1724392238147,-228.07313997,0.00010164,2]
[335623934,1724392238156,-25.76553848,0.00010172,2]
[335623935,1724392238171,-774.23446152,0.00010172,2]
[335623936,1724392238180,-237.26,0.00010189,2]
[335623937,1724392238190,-174.78,0.000102,2]
[335623938,1724392238199,-156.32,0.00010214,2]
[335623939,1724392238208,-115.90553848,0.00010401,2]
[335623940,1724392239147,-84.09446152,0.00010401,2]
[335623941,1724392239178,-187.7,0.00010618,2]
[335623942,1724392239205,-155.0,0.00010888,2]
[335623943,1724392239231,-650.04785045,0.0001089,2]
[335623944,1724392239258,-300.0,0.00010898,2]
[335623945,1724392239285,-352.0792,0.00010898,2]
[335623946,1724392239312,-249.67881297,0.00010899,2]
[335623947,1724392239338,-249.67881293,0.00010899,2]
[335623948,1724392239368,-249.67881293,0.00010899,2]
[335623949,1724392239394,-249.67881293,0.00010899,2]
[335623950,1724392239430,-249.67881293,0.00010899,2]
[335623951,1724392239457,-249.67881293,0.00010899,2]
[335623952,1724392239483,-249.67881293,0.00010899,2]
[335623953,1724392239510,-249.67881293,0.00010899,2]
[335623954,1724392239536,-249.67881293,0.000109,2]
[335623955,1724392239562,-249.67881293,0.000109,2]
[335623956,1724392239588,-190.87950087,0.000109,2]
[335623957,1724392239615,-190.87950087,0.000109,2]
[335623958,1724392239642,-190.87950087,0.000109,2]
[335623959,1724392239670,-228.81173494,0.00010949,2]
[335623960,1724392239697,-1290.82,0.00010996,2]
[335623963,1724392239724,-786.26,0.00010996,2]
[335623964,1724392239751,-500.0,0.00010997,2]
[335623965,1724392239778,-500.0,0.00010997,2]
[335623966,1724392239804,-500.36131568,0.00010997,2]
[335623967,1724392239831,-550.05,0.00010997,2]
[335623968,1724392239859,-550.05,0.00010997,2]
[335623969,1724392239887,-658.25,0.00010997,2]
[335623970,1724392239916,-658.25,0.00010997,2]
[335623971,1724392239942,-500.0,0.00010997,2]
[335623972,1724392239968,-500.0,0.00010997,2]
[335623973,1724392239994,-500.0,0.00010997,2]
[335623974,1724392240021,-500.0,0.00010997,2]
[335623975,1724392240047,-500.0,0.00010997,2]
[335623976,1724392240079,-500.0,0.00010997,2]
[335623977,1724392240106,-500.0,0.00010997,2]
[335623978,1724392240134,-500.0,0.00010997,2]
[335623979,1724392240162,-187.12794399,0.00010997,2]
[335623980,1724392240188,-500.0,0.00010997,2]
[335623981,1724392240216,-500.0,0.00010997,2]
[335623982,1724392240243,-2047.86,0.00010997,2]
[335623983,1724392241533,-2047.86,0.00010997,2]
[335623984,1724392241543,-1159.78,0.00010997,2]
[335623985,1724392241552,-1159.78,0.00010997,2]
[335623986,1724392241561,-500.0,0.00010997,2]
[335623987,1724392241571,-500.0,0.00010997,2]
[335623988,1724392241580,-728.97,0.00010997,2]
[335623989,1724392241589,-728.97,0.00010997,2]
[335623990,1724392241598,-694.5,0.00010997,2]
[335623991,1724392241607,-694.5,0.00010997,2]
[335623992,1724392241617,-923.13,0.00010997,2]
[335623993,1724392241626,-923.13,0.00010997,2]
[335623994,1724392241635,-688.84,0.00010997,2]
[335623995,1724392241644,-688.84,0.00010997,2]
[335623996,1724392241655,-765.58,0.00010997,2]
[335623997,1724392241664,-765.58,0.00010997,2]
[335623998,1724392241674,-1177.27,0.00010997,2]
[335623999,1724392241683,-1177.27,0.00010997,2]
[335624000,1724392241693,-500.0,0.00010997,2]
[335624001,1724392241701,-500.0,0.00010997,2]
[335624002,1724392241710,-500.0,0.00010997,2]
[335624003,1724392241719,-500.0,0.00010997,2]
[335624004,1724392241728,-644.93,0.00010997,2]
[335624005,1724392241738,-644.93,0.00010997,2]
[335624006,1724392241747,-500.0,0.00010997,2]
[335624007,1724392241756,-500.0,0.00010997,2]
[335624008,1724392241765,-509.5,0.00010997,2]
[335624009,1724392241774,-500.0,0.00010997,2]
[335624010,1724392241783,-509.5,0.00010997,2]
[335624011,1724392241792,-500.0,0.00010997,2]
[335624012,1724392241801,-500.0,0.00010997,2]
[335624013,1724392241811,-500.0,0.00010997,2]
[335624014,1724392241820,-500.0,0.00010997,2]
[335624015,1724392241829,-500.0,0.00010997,2]
[335624016,1724392241838,-500.0,0.00010997,2]
[335624017,1724392241847,-500.0,0.00010997,2]
[335624018,1724392241857,-500.0,0.00010997,2]
[335624019,1724392241866,-500.0,0.00010997,2]
[335624020,1724392241876,-500.0,0.00010997,2]
[335624021,1724392241885,-500.0,0.00010997,2]
[335624022,1724392241895,-1714.44,0.00010997,2]
[335624023,1724392241905,-1714.44,0.00010997,2]
[335624024,1724392241914,-500.0,0.00010997,2]
[335624025,1724392241923,-500.0,0.00010997,2]
[335624026,1724392241932,-500.0,0.00010997,2]
[335624027,1724392241942,-500.0,0.00010997,2]
[335624028,1724392241951,-500.0,0.00010997,2]
[335624029,1724392241960,-500.0,0.00010997,2]
[335624030,1724392241969,-500.0,0.00010997,2]
[335624031,1724392241978,-500.0,0.00010997,2]
[335624032,1724392241988,-1154.52,0.00010997,2]
[335624033,1724392241997,-1154.52,0.00010997,2]
[335624034,1724392242007,-500.0,0.00010997,2]
[335624035,1724392242016,-500.0,0.00010997,2]
[335624036,1724392242025,-500.0,0.00010997,2]
[335624037,1724392242036,-500.0,0.00010997,2]
[335624038,1724392242045,-948.07,0.00010997,2]
[335624039,1724392242055,-948.07,0.00010997,2]
[335624040,1724392242066,-501.91,0.00010997,2]
[335624041,1724392242075,-501.91,0.00010997,2]
[335624042,1724392242085,-500.0,0.00010997,2]
[335624043,1724392242094,-500.0,0.00010997,2]
[335624044,1724392242105,-531.64228519,0.00010997,2]
[335624045,1724392242114,-500.0,0.00010997,2]
[335624046,1724392242123,-500.0,0.00010997,2]
[335624047,1724392242133,-500.0,0.00010997,2]
[335624048,1724392242144,-500.0,0.00010997,2]
[335624049,1724392242154,-500.0,0.00010997,2]
[335624050,1724392242163,-500.0,0.00010997,2]
[335624051,1724392242172,-2302.82,0.00010997,2]
[335624052,1724392242182,-2302.82,0.00010997,2]
[335624053,1724392242191,-500.0,0.00010997,2]
[335624054,1724392242200,-500.0,0.00010997,2]
[335624055,1724392242209,-500.0,0.00010997,2]
[335624056,1724392242219,-500.0,0.00010997,2]
[335624057,1724392242228,-500.0,0.00010997,2]
[335624058,1724392242238,-311.30514628,0.00010997,2]
[335624059,1724392242248,-500.0,0.00010997,2]
[335624060,1724392242257,-500.0,0.00010997,2]
[335624061,1724392242266,-938.09,0.00010997,2]
[335624062,1724392242275,-938.09,0.00010997,2]
[335624063,1724392242284,-929.97,0.00010997,2]
[335624064,1724392242294,-929.97,0.00010997,2]
[335624065,1724392242303,-500.0,0.00010997,2]
[335624066,1724392242312,-500.0,0.00010997,2]
[335624067,1724392242322,-500.0,0.00010997,2]
[335624068,1724392242331,-500.0,0.00010997,2]
[335624069,1724392242340,-1221.55256854,0.00010997,2]
[335624070,1724392242558,-428.17850784,0.00010898,2]
[335624071,1724392242568,-331.16902942,0.00010997,2]
[335624072,1724392242580,-562.13840204,0.00010997,2]
[335624073,1724392242589,-70.16513598,0.00010997,2]
[335624082,1724392243522,-266.28237545,0.00010996,2]
[335624083,1724392243537,-4063.25762455,0.00010996,2]
[335624084,1724392243546,-2044.69486402,0.00010997,2]
[335624085,1724392243555,-500.0,0.00010997,2]
[335624086,1724392243565,-500.0,0.00010997,2]
[335624087,1724392243574,-500.0,0.00010997,2]
[335624088,1724392243583,-500.0,0.00010997,2]
[335624089,1724392243592,-500.0,0.00010997,2]
[335624090,1724392243601,-500.0,0.00010997,2]
[335624091,1724392243610,-500.0,0.00010997,2]
[335624092,1724392243619,-500.0,0.00010997,2]
[335624094,1724392243628,-500.0,0.00010997,2]
[335624096,1724392243638,-500.0,0.00010997,2]
[335624098,1724392243647,-837.98,0.00010997,2]
[335624100,1724392243657,-837.98,0.00010997,2]
[335624102,1724392243667,-500.0,0.00010997,2]
[335624103,1724392243676,-500.0,0.00010997,2]
[335624105,1724392243685,-2013.75,0.00010997,2]
[335624107,1724392243695,-2013.75,0.00010997,2]
[335624109,1724392243704,-500.0,0.00010997,2]
[335624111,1724392243713,-500.0,0.00010997,2]
[335624113,1724392243722,-660.16,0.00010997,2]
[335624115,1724392243731,-660.16,0.00010997,2]
[335624117,1724392243740,-500.0,0.00010997,2]
[335624120,1724392243749,-500.0,0.00010997,2]
[335624122,1724392243758,-500.0,0.00010997,2]
[335624125,1724392243767,-500.0,0.00010997,2]
[335624127,1724392243777,-770.83,0.00010997,2]
[335624129,1724392243787,-770.83,0.00010997,2]
[335624131,1724392243797,-527.73,0.00010997,2]
[335624133,1724392243806,-527.73,0.00010997,2]
[335624135,1724392243815,-784.75,0.00010997,2]
[335624137,1724392243825,-784.75,0.00010997,2]
[335624139,1724392243835,-1781.04,0.00010997,2]
[335624157,1724392243982,-1781.04,0.00010997,2]
[335624161,1724392244029,-726.0,0.00010997,2]
[335624163,1724392244039,-726.0,0.00010997,2]
[335624165,1724392244048,-500.0,0.00010997,2]
[335624167,1724392244058,-500.0,0.00010997,2]
[335624169,1724392244072,-500.0,0.00010997,2]
[335624171,1724392244081,-1787.14,0.00010997,2]
[335624173,1724392244091,-1787.14,0.00010997,2]
[335624175,1724392244101,-1425.41,0.00010997,2]
[335624177,1724392244112,-1425.41,0.00010997,2]
[335624179,1724392244122,-1425.41,0.00010997,2]
[335624180,1724392244132,-500.0,0.00010997,2]
[335624182,1724392244142,-500.0,0.00010997,2]
[335624184,1724392244152,-500.0,0.00010997,2]
[335624186,1724392244161,-500.0,0.00010997,2]
[335624188,1724392244171,-500.0,0.00010997,2]
[335624190,1724392244180,-500.0,0.00010997,2]
[335624192,1724392244189,-500.0,0.00010997,2]
[335624194,1724392244199,-500.0,0.00010997,2]
[335624196,1724392244209,-500.0,0.00010997,2]
[335624198,1724392244218,-501.52034505,0.00010997,2]
[335624200,1724392244228,-500.0,0.00010997,2]
[335624202,1724392244238,-1165.03,0.00010997,2]
[335624204,1724392244247,-500.0,0.00010997,2]
[335624206,1724392244257,-850.6,0.00010997,2]
[335624208,1724392244267,-850.6,0.00010997,2]
[335624210,1724392244276,-850.6,0.00010997,2]
[335624212,1724392244285,-500.0,0.00010997,2]
[335624214,1724392244294,-500.0,0.00010997,2]
[335624216,1724392244304,-500.0,0.00010997,2]
[335624218,1724392244314,-500.0,0.00010997,2]
[335624220,1724392244323,-500.0,0.00010997,2]
[335624222,1724392244333,-500.0,0.00010997,2]
[335624224,1724392244343,-1623.02,0.00010997,2]
[335624225,1724392244352,-1623.02,0.00010997,2]
[335624227,1724392244362,-1623.02,0.00010997,2]
[335624229,1724392244371,-500.0,0.00010997,2]
[335624231,1724392244381,-500.0,0.00010997,2]
[335624233,1724392244390,-500.0,0.00010997,2]
[335624235,1724392244400,-500.0,0.00010997,2]
[335624237,1724392244410,-500.0,0.00010997,2]
[335624239,1724392244419,-742.78,0.00010997,2]
[335624241,1724392244428,-742.78,0.00010997,2]
[335624243,1724392244437,-1845.1,0.00010997,2]
[335624245,1724392244447,-1845.1,0.00010997,2]
[335624247,1724392244456,-1845.1,0.00010997,2]
[335624249,1724392244465,-995.77,0.00010997,2]
[335624251,1724392244475,-995.77,0.00010997,2]
[335624253,1724392244484,-995.77,0.00010997,2]
[335624254,1724392244493,-867.92,0.00010997,2]
[335624256,1724392244502,-867.92,0.00010997,2]
[335624258,1724392244511,-500.0,0.00010997,2]
[335624260,1724392244521,-867.92,0.00010997,2]
[335624262,1724392244531,-500.0,0.00010997,2]
[335624264,1724392244540,-581.2,0.00010997,2]
[335624266,1724392244550,-581.2,0.00010997,2]
[335624267,1724392244559,-2391.96,0.00010997,2]
[335624269,1724392244568,-2391.96,0.00010997,2]
[335624271,1724392244577,-2391.96,0.00010997,2]
[335624273,1724392244586,-500.0,0.00010997,2]
[335624275,1724392244595,-500.0,0.00010997,2]
[335624277,1724392244604,-500.0,0.00010997,2]
[335624279,1724392244614,-500.0,0.00010997,2]
[335624280,1724392244623,-590.68710558,0.00010997,2]
[335624282,1724392244632,-727.58,0.00010997,2]
[335624284,1724392244642,-1120.34,0.00010997,2]
[335624286,1724392244652,-727.58,0.00010997,2]
[335624288,1724392244662,-1120.34,0.00010997,2]
[335624290,1724392244671,-727.58,0.00010997,2]
[335624292,1724392244681,-1120.34,0.00010997,2]
[335624294,1724392244690,-531.78,0.00010997,2]
[335624296,1724392244699,-531.78,0.00010997,2]
[335624297,1724392244709,-531.78,0.00010997,2]
[335624298,1724392244718,-500.0,0.00010997,2]
[335624299,1724392244727,-500.0,0.00010997,2]
[335624300,1724392244738,-500.0,0.00010997,2]
[335624301,1724392244747,-500.0,0.00010997,2]
[335624302,1724392244756,-500.0,0.00010997,2]
[335624303,1724392244765,-1208.32,0.00010997,2]
[335624304,1724392244775,-1208.32,0.00010997,2]
[335624305,1724392244784,-500.0,0.00010997,2]
[335624306,1724392244794,-500.0,0.00010997,2]
[335624307,1724392244803,-500.0,0.00010997,2]
[335624308,1724392244812,-800.77,0.00010997,2]
[335624309,1724392244822,-800.77,0.00010997,2]
[335624310,1724392244831,-800.77,0.00010997,2]
[335624311,1724392244841,-401.3002615,0.00010997,2]
[335624312,1724392244851,-1103.75,0.00010997,2]
[335624313,1724392244860,-1103.75,0.00010997,2]
[335624314,1724392244869,-1103.75,0.00010997,2]
[335624315,1724392244879,-549.14,0.00010997,2]
[335624316,1724392244888,-500.0,0.00010997,2]
[335624317,1724392244897,-549.14,0.00010997,2]
[335624318,1724392244908,-500.0,0.00010997,2]
[335624319,1724392244918,-549.14,0.00010997,2]
[335624320,1724392244927,-500.0,0.00010997,2]
[335624321,1724392244937,-500.0,0.00010997,2]
[335624322,1724392244946,-500.0,0.00010997,2]
[335624323,1724392244956,-500.0,0.00010997,2]
[335624324,1724392244965,-500.0,0.00010997,2]
[335624325,1724392244974,-500.0,0.00010997,2]
[335624326,1724392244985,-500.0,0.00010997,2]
[335624327,1724392244994,-500.0,0.00010997,2]
[335624328,1724392245004,-500.0,0.00010997,2]
[335624329,1724392245013,-500.0,0.00010997,2]
[335624330,1724392245023,-2658.84,0.00010997,2]
[335624331,1724392245032,-2658.84,0.00010997,2]
[335624332,1724392245042,-1685.31,0.00010997,2]
[335624333,1724392245051,-1685.31,0.00010997,2]
[335624334,1724392245060,-1685.31,0.00010997,2]
[335624335,1724392245074,-500.0,0.00010997,2]
[335624336,1724392245083,-500.0,0.00010997,2]
[335624337,1724392245093,-500.0,0.00010997,2]
[335624338,1724392245102,-500.0,0.00010997,2]
[335624339,1724392245113,-500.0,0.00010997,2]
[335624340,1724392245122,-830.06,0.00010997,2]
[335624341,1724392245131,-1068.3,0.00010997,2]
[335624342,1724392245142,-830.06,0.00010997,2]
[335624343,1724392245151,-1068.3,0.00010997,2]
[335624344,1724392245162,-1068.3,0.00010997,2]
[335624345,1724392245171,-830.06,0.00010997,2]
[335624346,1724392245180,-500.0,0.00010997,2]
[335624347,1724392245189,-1397.6,0.00010997,2]
[335624348,1724392245198,-500.0,0.00010997,2]
[335624349,1724392245207,-500.0,0.00010997,2]
[335624350,1724392245216,-1397.6,0.00010997,2]
[335624351,1724392245226,-1109.6,0.00010997,2]
[335624352,1724392245235,-1109.6,0.00010997,2]
[335624353,1724392245244,-1109.6,0.00010997,2]
[335624354,1724392245253,-500.0,0.00010997,2]
[335624355,1724392245262,-504.2714348,0.00010997,2]
[335624356,1724392245271,-1834.46,0.00010997,2]
[335624357,1724392245280,-1834.46,0.00010997,2]
[335624358,1724392245289,-502.61,0.00010997,2]
[335624359,1724392245298,-502.61,0.00010997,2]
[335624360,1724392245307,-502.61,0.00010997,2]
[335624361,1724392245316,-500.0,0.00010997,2]
[335624362,1724392245325,-500.0,0.00010997,2]
[335624363,1724392245334,-500.0,0.00010997,2]
[335624364,1724392245343,-500.0,0.00010997,2]
[335624365,1724392245352,-2648.31,0.00010997,2]
[335624366,1724392245362,-2648.31,0.00010997,2]
[335624367,1724392245371,-500.0,0.00010997,2]
[335624368,1724392245380,-500.0,0.00010997,2]
[335624369,1724392245389,-909.23,0.00010997,2]
[335624370,1724392245399,-909.23,0.00010997,2]
[335624371,1724392245408,-909.23,0.00010997,2]
[335624372,1724392245418,-620.81129227,0.00010997,2]
[335624373,1724392245427,-500.0,0.00010997,2]